bitfinex/quotes_ETHUSD_20230403
["timestamp","ask_amount","ask_price","bid_price","bid_amount"]
[1680526568936,1.06107483,1802.2,1802.0,0.15958065]
[1680526569473,0.691,1802.1,1802.0,0.15958065]
[1680526569686,0.691,1802.1,1802.0,0.15697322]
[1680526569687,9.65580264,1802.1,1802.0,0.15697322]
[1680526569972,19.72445273,1802.1,1802.0,0.15697322]
[1680526570269,21.44592465,1802.1,1802.0,0.15697322]
[1680526570579,1.0,1802.0,1801.9,0.19564113]
[1680526570725,4.84784676,1802.0,1801.9,0.19564113]
[1680526570925,4.85355003,1802.0,1801.9,0.19564113]
[1680526571126,6.98462327,1802.0,1801.9,0.19564113]
[1680526571321,11.82753187,1802.0,1801.9,0.19564113]
[1680526572235,12.19953187,1802.0,1801.9,0.19564113]
[1680526573644,12.20936197,1802.0,1801.9,0.19564113]
[1680526581254,5.83,1801.9,1801.3,0.006]
[1680526581481,5.83,1801.9,1801.2,0.006]
[1680526581482,1.233,1801.6,1801.2,0.006]
[1680526581762,0.45203,1801.5,1801.2,0.006]
[1680526582154,1.67603,1801.5,1801.2,0.006]
[1680526582637,1.67603,1801.5,1801.1,0.006]
[1680526585349,1.454,1801.5,1801.1,0.006]
[1680526586646,0.0097923,1801.4,1801.1,0.006]
[1680526589897,0.0097923,1801.4,1801.1,0.2836]
[1680526590050,0.0097923,1801.4,1801.1,0.83881]
[1680526590250,0.0097923,1801.4,1801.2,0.083881]
[1680526590452,0.0097923,1801.4,1801.2,0.367461]
[1680526590687,0.02255482,1801.6,1801.2,0.367461]
[1680526590994,0.02255482,1801.6,1801.2,5.628061]
[1680526591199,4.222,1801.8,1801.2,6.185241]
[1680526591362,4.222,1801.8,1801.3,0.6185241]
[1680526591541,0.0097986,1801.5,1801.4,0.27755]
[1680526592158,0.0097986,1801.5,1801.4,11.85075]
[1680526592359,0.0097986,1801.5,1801.4,11.85875]
[1680526592590,3.0,1801.8,1801.4,12.88443941]
[1680526592789,0.002,1801.9,1801.4,12.88443941]
[1680526592790,0.22399,1801.9,1801.4,12.88443941]
[1680526592997,0.22199,1801.9,1801.4,12.88443941]
[1680526593357,0.22199,1801.9,1801.4,13.16198941]
[1680526593561,7.11476728,1801.8,1801.4,0.002]
[1680526593882,8.71665,1801.4,1800.9,0.1]
[1680526594061,0.66622,1801.2,1800.9,0.1]
[1680526594267,0.88394527,1801.2,1800.9,0.1]
[1680526594698,0.90650009,1801.2,1800.9,0.1]
[1680526595198,0.23,1801.1,1800.9,0.1]
[1680526595369,0.66628,1801.0,1800.9,0.1]
[1680526596955,0.45209,1801.1,1800.9,0.1]
[1680526597154,0.52132701,1801.1,1800.9,0.1]
[1680526598404,0.29923701,1801.1,1800.9,0.1]
[1680526598970,0.21772527,1801.2,1800.9,0.1]
[1680526599405,0.43980527,1801.2,1800.9,0.1]
[1680526600115,0.434102,1801.2,1800.9,0.1]
[1680526600262,0.878242,1801.2,1800.9,0.1]
[1680526600462,0.88394527,1801.2,1800.9,0.1]
[1680526603216,0.43979527,1801.2,1800.9,0.1]
[1680526603505,0.434092,1801.2,1800.9,0.1]
[1680526603707,0.22207,1801.2,1800.9,0.1]
[1680526603924,3.44983327,1801.3,1800.9,0.1]
[1680526604205,0.22207,1801.2,1800.9,0.1]
[1680526604506,0.22777327,1801.2,1800.9,0.1]
[1680526606208,0.67191327,1801.2,1800.9,0.1]
[1680526608617,1.0391046,1801.2,1800.9,0.1]
[1680526614055,0.5949646,1801.2,1800.9,0.1]
[1680526614228,0.3728946,1801.2,1800.9,0.1]
[1680526614420,0.5949646,1801.2,1800.9,0.1]
[1680526614615,0.00570327,1801.2,1800.9,0.1]
[1680526614855,3.02825809,1801.3,1800.9,0.1]
[1680526615216,3.25031809,1801.3,1800.9,0.1]
[1680526615413,3.02825809,1801.3,1800.9,0.1]
[1680526615741,0.00570327,1801.3,1800.9,3.72066728]
[1680526615933,0.002,1801.4,1801.1,0.2776]
[1680526615934,0.00570327,1801.4,1801.1,0.2776]
[1680526616316,0.00570327,1801.6,1801.1,5.7939]
[1680526616548,0.00570327,1801.6,1801.1,5.7959]
[1680526616825,0.22772327,1801.6,1801.1,5.7959]
[1680526617024,0.22772327,1801.6,1801.1,5.5183]
[1680526617253,0.22772327,1801.6,1801.1,7.30250067]
[1680526617750,0.22772327,1801.6,1801.1,7.30000405]
[1680526617955,0.22202,1801.6,1801.1,7.30000405]
[1680526618168,6.11476728,1801.5,1801.1,0.002]
[1680526618477,1.233,1801.3,1800.9,0.1]
[1680526618683,0.66622,1801.2,1800.9,0.1]
[1680526619570,0.67192327,1801.2,1800.9,0.1]
[1680526619767,1.25369908,1801.2,1800.9,0.1]
[1680526620077,4.25369908,1801.2,1800.9,0.1]
[1680526621772,6.06,1801.1,1800.9,0.1]
[1680526621976,0.22209,1801.0,1800.9,0.1]
[1680526622183,0.66628,1801.0,1800.9,0.1]
[1680526622499,0.73347833,1801.0,1800.9,0.1]
[1680526623452,0.96347833,1801.0,1800.9,0.1]
[1680526623657,0.51928833,1801.0,1800.9,0.1]
[1680526625358,0.29719833,1801.0,1800.9,0.1]
[1680526626902,0.06719833,1801.0,1800.9,0.1]
[1680526627108,0.22209,1801.0,1800.9,0.1]
[1680526627395,0.66628,1801.0,1800.9,0.1]
[1680526629922,0.22779327,1801.1,1800.9,0.1]
[1680526630306,0.00570327,1801.1,1800.9,0.1]
[1680526630723,0.25032809,1801.3,1800.9,0.1]
[1680526630941,0.22207,1801.2,1800.9,0.1]
[1680526631781,3.69445809,1801.3,1800.9,1.31838]
[1680526631982,3.25032809,1801.3,1800.9,0.1]
[1680526632527,3.69444809,1801.3,1800.9,0.1]
[1680526634271,3.25032809,1801.3,1800.9,0.1]
[1680526635911,3.02825809,1801.3,1800.9,0.1]
[1680526636123,3.25031809,1801.3,1800.9,0.1]
[1680526636328,4.1089589,1801.3,1800.9,0.1]
[1680526645065,4.5530789,1801.3,1800.9,0.1]
[1680526650888,4.1089589,1801.3,1800.9,0.1]
[1680526651384,4.5530789,1801.3,1800.9,0.1]
[1680526654945,0.22208,1801.1,1800.9,0.1]
[1680526655173,0.311704,1801.1,1800.9,0.1]
[1680526661539,0.00570327,1801.2,1800.9,0.1]
[1680526661773,0.00570327,1801.3,1801.0,1.226]
[1680526662093,0.22776327,1801.4,1800.9,9.95326913]
[1680526662389,0.22206,1801.4,1801.0,0.99532691]
[1680526663286,1.24461275,1801.5,1801.0,0.99532691]
[1680526663597,0.80054275,1801.5,1801.0,0.99532691]
[1680526664297,0.80054275,1801.5,1801.0,1.27294691]
[1680526664462,0.80624602,1801.5,1801.0,1.27294691]
[1680526664881,0.79792989,1801.5,1801.0,1.00132691]
[1680526665393,0.79792989,1801.5,1801.1,0.10013269]
[1680526665744,0.79791989,1801.5,1801.1,0.10013269]
[1680526665962,0.79791989,1801.5,1801.0,1.00132691]
[1680526666186,0.79791989,1801.5,1801.0,1.27894691]
[1680526666387,0.57588989,1801.5,1801.0,1.27894691]
[1680526667180,0.79791989,1801.5,1801.0,1.27894691]
[1680526670020,3.22203,1801.6,1801.2,1.15845956]
[1680526673620,3.66607,1801.6,1801.2,1.15845956]
[1680526674911,4.24443903,1801.6,1801.2,1.15845956]
[1680526675532,3.80039903,1801.6,1801.2,1.15845956]
[1680526677229,3.80038903,1801.6,1801.2,1.15845956]
[1680526677432,3.80038903,1801.6,1801.1,11.8621856]
[1680526677596,3.80038903,1801.6,1801.1,11.5845956]
[1680526680017,3.57836903,1801.6,1801.1,11.8621956]
[1680526680219,3.0,1801.6,1801.1,11.8621956]
[1680526680396,0.82494385,1801.7,1801.1,12.4174056]
[1680526680397,4.47185061,1801.7,1801.1,12.4174056]
[1680526680732,8.65103385,1801.7,1801.2,1.51932056]
[1680526680892,8.65303385,1801.7,1801.2,1.51932056]
[1680526681133,9.52196061,1801.7,1801.2,1.24174056]
[1680526681934,0.58809934,1801.6,1801.2,1.24174056]
[1680526682141,0.81011934,1801.6,1801.2,1.24174056]
[1680526683433,0.81011934,1801.6,1801.1,11.5845956]
[1680526683434,1.25415934,1801.6,1801.1,11.5845956]
[1680526683616,1.25415934,1801.6,1801.1,11.0644]
[1680526684045,0.00973031,1801.6,1801.2,4.01676728]
[1680526684202,0.00973031,1801.6,1801.3,0.83271]
[1680526684403,0.00973031,1801.6,1801.3,3.62047728]
[1680526684604,0.00973031,1801.6,1801.3,5.2303]
[1680526684963,5.43926903,1801.9,1801.4,0.80058]
[1680526685481,4.8609,1801.9,1801.4,0.80058]
[1680526685644,0.01000706,1801.8,1801.4,12.9742]
[1680526685966,0.01000706,1801.8,1801.4,12.42708]
[1680526686544,3.01000706,1801.8,1801.4,12.42708]
[1680526686748,3.0,1801.8,1801.5,1.242708]
[1680526686965,4.8609,1801.9,1801.5,4.86910528]
[1680526686966,0.002,1801.9,1801.5,4.86910528]
[1680526687272,5.10016,1802.1,1801.5,4.86310528]
[1680526687420,4.8802,1802.1,1801.5,4.86310528]
[1680526687620,4.8782,1802.1,1801.6,0.48631053]
[1680526687825,4.8782,1802.1,1801.7,0.27751]
[1680526688469,5.10016,1802.1,1801.6,0.76384053]
[1680526688650,4.8802,1802.1,1801.6,0.76384053]
[1680526688851,4.88390327,1802.1,1801.6,0.7606553]
[1680526689153,4.88390327,1802.1,1801.7,0.35356553]
[1680526689154,0.00570327,1802.1,1801.7,0.35356553]
[1680526689317,0.00570327,1802.1,1801.7,12.33117553]
[1680526689513,0.00570327,1802.1,1801.7,12.33317553]
[1680526690318,0.00570327,1802.1,1801.7,12.88820553]
[1680526690518,0.00570327,1802.1,1801.9,0.27748]
[1680526690821,0.00570327,1802.1,1801.8,1.28882055]
[1680526690822,3.00570327,1802.1,1801.8,1.56630055]
[1680526691036,0.00570327,1802.1,1801.8,1.56630055]
[1680526692698,0.00570327,1802.1,1801.8,1.28882055]
[1680526693799,0.00570327,1802.2,1801.8,1.56631055]
[1680526693951,0.00570327,1802.2,1801.9,0.15663106]
[1680526695207,0.00570327,1802.2,1801.7,12.05566553]
[1680526695208,0.22765327,1802.2,1801.7,12.05566553]
[1680526696070,0.22765327,1802.2,1801.7,12.33317553]
[1680526696282,0.22765327,1802.2,1801.7,12.05566553]
[1680526696791,0.00570327,1802.2,1801.7,12.33317553]
[1680526698009,0.00570327,1802.2,1801.7,12.05566553]
[1680526698173,0.83494608,1802.2,1801.7,12.33317553]
[1680526699418,0.00570327,1802.2,1801.8,2.78776728]
[1680526699584,0.11570328,1802.3,1801.9,2.06244]
[1680526699920,0.11570328,1802.3,1801.9,10.16570728]
[1680526699921,0.11000001,1802.3,1801.9,10.16570728]
[1680526700103,0.11000001,1802.3,1802.0,15.09433801]
[1680526700435,0.11000001,1802.3,1802.1,0.83235]
[1680526701271,0.11000001,1802.3,1802.1,3.62011728]
[1680526703591,0.11000001,1802.3,1802.1,0.83235]
[1680526704697,0.11000001,1802.3,1802.1,0.27745]
[1680526705038,0.11000001,1802.3,1802.1,1.82553107]
[1680526706291,0.11000001,1802.3,1802.1,2.38043107]
[1680526709956,0.10668328,1802.3,1802.2,3.62006728]
[1680526710183,0.10668328,1802.3,1802.2,3.06519728]
[1680526710382,0.10668328,1802.3,1802.2,0.27743]
[1680526710929,0.10668328,1802.3,1802.2,0.8323]
[1680526711845,0.11638087,1802.3,1802.2,0.8323]
[1680526713782,0.10668328,1802.3,1802.2,5.1982]
[1680526714286,0.10668328,1802.3,1802.2,5.47563]
[1680526714448,0.10668328,1802.3,1802.2,5.1982]
[1680526714638,0.10668328,1802.3,1802.2,0.002]
[1680526714991,0.11638087,1802.3,1802.0,11.292]
[1680526715198,0.11638087,1802.3,1802.0,11.56946]
[1680526715337,0.26457444,1802.3,1802.0,11.298]
[1680526715892,0.26457444,1802.3,1802.0,0.002]
[1680526716088,0.26457444,1802.3,1801.8,17.70147]
[1680526716253,0.26457444,1802.3,1801.8,17.69947]
[1680526716456,0.26457444,1802.3,1801.8,17.69547]
[1680526720038,0.26457444,1802.3,1801.8,19.5907711]
[1680526723258,0.11638087,1802.3,1801.8,19.5907711]
[1680526728190,0.11638087,1802.3,1801.9,2.78776728]
[1680526728394,0.11638087,1802.3,1802.0,0.83239]
[1680526730152,0.11638087,1802.3,1802.0,0.82965731]
[1680526731342,0.11638087,1802.3,1802.0,3.61742459]
[1680526731547,0.11638087,1802.3,1802.1,0.36174246]
[1680526731750,0.11638087,1802.3,1802.2,0.27743]
[1680526734434,0.11638087,1802.3,1802.2,0.8323]
[1680526734978,0.11638087,1802.3,1802.2,3.62006728]
[1680526740630,0.11393304,1802.3,1802.2,3.62206728]
[1680526740838,0.11393304,1802.3,1802.2,5.86021525]
[1680526741170,0.11393304,1802.3,1802.2,5.86221525]
[1680526743419,0.11393304,1802.3,1802.2,2.24214797]
[1680526743624,0.11393304,1802.3,1802.1,17.94708246]
[1680526744190,3.304e-05,1802.3,1802.2,3.36776913]
[1680526744518,0.11000001,1802.6,1802.4,6.66221]
[1680526744519,0.0220738,1802.6,1802.4,6.66221]
[1680526744829,0.0220738,1802.6,1802.5,4.20086613]
[1680526745140,0.0220738,1802.6,1802.5,16.02186613]
[1680526745342,0.0220738,1802.6,1802.5,17.94765307]
[1680526745489,0.0220738,1802.6,1802.5,23.77765307]
[1680526745996,0.0220738,1802.6,1802.5,17.94765307]
[1680526746396,0.0220738,1802.6,1802.5,17.36672422]
[1680526746807,0.0220738,1802.6,1802.5,22.68992422]
[1680526748901,0.0220738,1802.6,1802.5,23.25002893]
[1680526749699,0.0220738,1802.6,1802.5,29.08002893]
[1680526755348,0.0220738,1802.6,1802.5,31.42202893]
[1680526755658,0.0220738,1802.6,1802.5,34.42202893]
[1680526755801,0.0220738,1802.6,1802.5,34.42802893]
[1680526756649,0.10185714,1802.8,1802.5,36.23595778]
[1680526756856,0.10185714,1802.8,1802.7,8.99752]
[1680526756995,0.10185714,1802.8,1802.7,11.78728728]
[1680526757200,0.10185714,1802.8,1802.7,12.89728728]
[1680526761134,0.10185714,1802.8,1802.7,15.89728728]
[1680526761655,0.05185714,1802.8,1802.7,15.89728728]
[1680526761861,0.05185714,1802.8,1802.7,18.12674359]
[1680526763491,0.05185714,1802.8,1802.7,19.35174359]
[1680526764961,0.05185714,1802.8,1802.7,19.58174359]
[1680526766504,0.05185714,1802.8,1802.7,22.90874359]
[1680526766794,0.02315715,1802.9,1802.8,9.98903]
[1680526766992,0.02315715,1802.9,1802.8,37.27636664]
[1680526767144,0.02315715,1802.9,1802.8,38.38636664]
[1680526769458,0.02315715,1802.9,1802.8,34.82936664]
[1680526771217,0.02315715,1802.9,1802.8,35.05936664]
[1680526772048,0.02315715,1802.9,1802.8,34.82936664]
[1680526772255,0.02315715,1802.9,1802.8,33.59736664]
[1680526777259,0.02315715,1802.9,1802.8,36.92436664]
[1680526777474,0.02315715,1802.9,1802.8,34.40829549]
[1680526777671,0.02315715,1802.9,1802.8,33.59736664]
[1680526779203,0.02315715,1802.9,1802.8,34.17829549]
[1680526780401,0.02315715,1802.9,1802.8,33.59736664]
[1680526781302,0.02315715,1802.9,1802.8,34.17829549]
[1680526781809,0.02315715,1802.9,1802.8,32.95329549]
[1680526782108,0.02315715,1802.9,1802.8,27.73269549]
[1680526782755,0.02315715,1802.9,1802.8,29.24915992]
[1680526783003,0.02315715,1802.9,1802.8,30.41101762]
[1680526783356,0.02315715,1802.9,1802.8,29.53962434]
[1680526783760,0.02315715,1802.9,1802.8,32.86662434]
[1680526783962,0.02315715,1802.9,1802.8,33.09662434]
[1680526785174,0.02315715,1802.9,1802.8,34.55121539]
[1680526785572,0.02315715,1802.9,1802.8,33.09662434]
[1680526787487,0.0204903,1802.9,1802.8,33.09662434]
[1680526790112,0.0204903,1802.9,1802.8,33.38935769]
[1680526791911,0.0204903,1802.9,1802.8,29.83235769]
[1680526792114,0.0204903,1802.9,1802.8,28.60635769]
[1680526798215,0.0204903,1802.9,1802.8,26.02055218]
[1680526798419,0.0204903,1802.9,1802.8,23.02055218]
[1680526798583,0.0204903,1802.9,1802.8,16.08055218]
[1680526798787,0.0204903,1802.9,1802.8,15.7909647]
[1680526799093,0.0204903,1802.9,1802.8,1.70409742]
[1680526799094,1.2424903,1802.9,1802.8,1.70409742]
[1680526799294,1.2424903,1802.9,1802.8,1.70209742]
[1680526799616,0.0204903,1802.9,1802.8,6.10818393]
[1680526799833,0.0204903,1802.9,1802.8,10.83018393]
[1680526799965,0.02899837,1802.9,1802.8,5.6018647]
[1680526800614,0.02899837,1802.9,1802.8,5.89145218]
[1680526800769,0.02899837,1802.9,1802.8,6.76185629]
[1680526801910,0.02899837,1802.9,1802.8,5.65185629]
[1680526802075,0.02899837,1802.9,1802.8,6.76185629]
[1680526802475,0.02899837,1802.9,1802.8,4.78145218]
[1680526802798,0.02899837,1802.9,1802.8,4.77945218]
[1680526803824,1.26199837,1802.9,1802.8,2.30776915]
[1680526803971,1.26199837,1802.9,1802.8,2.86245915]
[1680526804200,1.26199837,1802.9,1802.8,1.14811425]
[1680526804394,1.40145369,1802.9,1802.8,0.58074313]
[1680526804622,1.40145369,1802.9,1802.7,0.85810313]
[1680526804931,1.233,1802.8,1802.7,0.58074313]
[1680526805132,1.233,1802.8,1802.7,0.85810313]
[1680526805442,1.23870327,1802.8,1802.7,0.58074313]
[1680526805645,1.23870327,1802.8,1802.6,0.85810313]
[1680526805841,1.233,1802.7,1802.6,1.14813425]
[1680526805990,1.233,1802.7,1802.6,1.72891236]
[1680526806432,1.233,1802.7,1802.6,0.85813811]
[1680526806741,1.22970327,1802.8,1802.6,3.64590539]
[1680526808440,1.22970327,1802.8,1802.6,4.51667964]
[1680526808648,1.22970327,1802.8,1802.6,4.75590539]
[1680526808943,1.22970327,1802.8,1802.6,3.64590539]
[1680526809970,0.00937489,1802.7,1802.6,3.36854539]
[1680526812022,1.23137489,1802.7,1802.6,3.36854539]
[1680526812453,1.23137489,1802.7,1802.6,2.78776728]
[1680526814579,1.23137489,1802.7,1802.5,2.25288282]
[1680526814759,1.23137489,1802.7,1802.5,2.52826282]
[1680526818467,1.23137489,1802.7,1802.5,1.94748471]
[1680526819068,0.00937489,1802.7,1802.6,2.78776728]
[1680526819269,0.00937489,1802.7,1802.6,3.06513728]
[1680526819762,2.25919357,1802.9,1802.6,3.06513728]
[1680526820873,0.00938118,1802.8,1802.6,3.06513728]
[1680526824788,0.00938118,1802.8,1802.6,4.17513728]
[1680526825089,0.00938118,1802.8,1802.6,3.06513728]
[1680526827355,0.00938118,1802.8,1802.6,7.00121729]
[1680526827590,0.00594975,1802.8,1802.7,1.11]
[1680526827753,0.00938118,1802.8,1802.7,10.55984728]
[1680526827949,0.00938118,1802.8,1802.7,10.56184728]
[1680526829946,0.00938118,1802.8,1802.7,9.45184728]
[1680526830252,0.00938118,1802.8,1802.7,10.90478882]
[1680526836700,0.00938118,1802.8,1802.7,11.48556693]
[1680526841576,0.00938118,1802.8,1802.7,12.35634118]
[1680526841785,0.00938118,1802.8,1802.7,11.77556307]
[1680526843574,0.00938118,1802.8,1802.7,12.06444372]
[1680526843978,0.00938118,1802.8,1802.7,13.17444372]
[1680526844194,0.00938118,1802.8,1802.7,16.76029808]
[1680526844716,0.00938118,1802.8,1802.7,15.01478882]
[1680526844881,0.0204903,1802.9,1802.7,15.01478882]
[1680526845076,0.0204903,1802.9,1802.8,14.5721986]
[1680526845276,0.0204903,1802.9,1802.8,28.9977086]
[1680526845467,0.0204903,1802.9,1802.8,34.4364086]
[1680526847232,0.0204903,1802.9,1802.8,27.20559234]
[1680526848194,0.0204903,1802.9,1802.8,28.65854478]
[1680526848399,0.0204903,1802.9,1802.8,27.20559234]
[1680526849550,0.0172754,1802.9,1802.8,27.19959234]
[1680526850301,0.0172754,1802.9,1802.8,28.65254478]
[1680526850526,0.0172754,1802.9,1802.8,27.19959234]
[1680526851732,0.0172754,1802.9,1802.8,28.30959234]
[1680526851924,0.0172754,1802.9,1802.8,27.19959234]
[1680526852960,0.02581439,1802.9,1802.8,27.19959234]
[1680526853958,0.0172754,1802.9,1802.8,28.30959234]
[1680526854922,0.02581439,1802.9,1802.8,28.30959234]
[1680526856042,0.02581439,1802.9,1802.8,27.19959234]
[1680526858734,0.02581439,1802.9,1802.8,28.30959234]
[1680526858919,0.0172754,1802.9,1802.8,28.30959234]
[1680526859938,0.02581439,1802.9,1802.8,28.30959234]
[1680526860536,0.02581439,1802.9,1802.8,34.13959234]
[1680526861028,0.0172754,1802.9,1802.8,33.02959234]
[1680526864544,0.0172754,1802.9,1802.8,26.09021234]
[1680526864866,0.0172754,1802.9,1802.8,24.58873346]
[1680526865932,0.02581439,1802.9,1802.8,24.58873346]
[1680526866564,0.02581439,1802.9,1802.8,1.44147618]
[1680526866772,0.02581439,1802.9,1802.8,1.14874798]
[1680526869832,0.03435338,1802.9,1802.8,1.14874798]
[1680526870261,0.03435338,1802.9,1802.8,0.87140798]
[1680526870575,0.03435338,1802.9,1802.8,1.14874798]
[1680526870930,0.03435338,1802.9,1802.8,0.87140798]
[1680526871127,0.03435338,1802.9,1802.7,15.55508862]
[1680526871128,1.6667682,1802.9,1802.7,0.58319247]
[1680526871333,1.55467682,1802.8,1802.7,0.58119247]
[1680526874498,1.55467682,1802.8,1802.6,1.45260045]
[1680526874699,0.694,1802.7,1802.6,1.45260045]
[1680526875856,0.694,1802.7,1802.6,0.58119247]
[1680526882281,0.84946768,1802.7,1802.6,0.58119247]
[1680526884962,0.15546768,1802.7,1802.6,0.58119247]
[1680526885314,0.694,1802.8,1802.6,0.58119247]
[1680526887261,0.694,1802.8,1802.6,0.85855247]
[1680526887535,0.694,1802.8,1802.6,0.58119247]
[1680526888114,0.694,1802.8,1802.6,0.85856247]
[1680526888269,0.694,1802.8,1802.6,0.58119247]
[1680526891807,0.694,1802.8,1802.6,0.85856247]
[1680526892078,0.0085264,1802.7,1802.6,0.85856247]
[1680526892277,0.00621492,1802.7,1802.6,4.49129526]
[1680526892631,0.00621492,1802.7,1802.6,5.07185709]
[1680526892830,0.02581439,1802.9,1802.6,5.07385709]
[1680526893064,0.02581439,1802.9,1802.7,2.78776728]
[1680526893878,0.00864909,1802.8,1802.7,2.78776728]
[1680526894474,0.00864909,1802.8,1802.7,4.84973719]
[1680526898671,0.00864909,1802.8,1802.7,5.43029902]
[1680526898904,0.00864909,1802.8,1802.7,5.43229902]
[1680526901212,0.00864909,1802.8,1802.7,5.70965902]
[1680526901383,0.00864909,1802.8,1802.7,12.38522517]
[1680526901577,0.00864909,1802.8,1802.7,12.67595337]
[1680526901911,0.00853899,1802.9,1802.7,12.67595337]
[1680526902123,0.00853899,1802.9,1802.8,2.99678443]
[1680526902269,0.00853899,1802.9,1802.8,5.20381207]
[1680526902617,0.00853899,1802.9,1802.8,5.76050207]
[1680526902822,0.00853899,1802.9,1802.8,6.34130933]
[1680526902978,0.01719437,1802.9,1802.8,6.34130933]
[1680526903871,0.01719437,1802.9,1802.8,5.76050207]
[1680526907218,0.01719437,1802.9,1802.8,5.20581207]
[1680526909132,0.01719437,1802.9,1802.8,12.75293607]
[1680526909281,0.01719437,1802.9,1802.8,11.8815288]
[1680526911026,0.00853899,1802.9,1802.8,11.8815288]
[1680526912310,0.00853899,1802.9,1802.8,12.9915288]
[1680526912896,0.00853899,1802.9,1802.8,12.99127534]
[1680526914297,0.00853899,1802.9,1802.8,12.98742606]
[1680526916799,0.00853899,1802.9,1802.8,7.15742606]
[1680526917126,0.00853899,1802.9,1802.8,12.98742606]
[1680526917534,0.00853899,1802.9,1802.8,7.15742606]
[1680526917908,0.00853899,1802.9,1802.8,12.98742606]
[1680526919041,0.00853899,1802.9,1802.8,7.15742606]
[1680526920424,0.00853899,1802.9,1802.8,12.98742606]
[1680526921631,0.00853899,1802.9,1802.8,18.41582606]
[1680526928548,0.00853899,1802.9,1802.8,17.30582606]
[1680526928743,0.00853899,1802.9,1802.8,11.47582606]
[1680526928951,0.00853899,1802.9,1802.8,9.36665422]
[1680526929146,0.00853899,1802.9,1802.8,9.08931422]
[1680526929390,0.00853899,1802.9,1802.8,10.52853694]
[1680526929538,0.00853899,1802.9,1802.8,5.10013694]
[1680526929744,0.00853899,1802.9,1802.8,4.78368]
[1680526929946,0.01719437,1802.9,1802.8,4.78168]
[1680526930995,0.00853899,1802.9,1802.8,4.78168]
[1680526931962,0.00853899,1802.9,1802.8,11.52641296]
[1680526932289,0.00853899,1802.9,1802.8,14.87246052]
[1680526932640,0.00853899,1802.9,1802.8,16.32446829]
[1680526932837,0.00853899,1802.9,1802.8,14.87246052]
[1680526933671,0.00853899,1802.9,1802.8,16.32446824]
[1680526935591,0.00853899,1802.9,1802.8,14.87246052]
[1680526939369,0.00606683,1802.9,1802.8,14.87246052]
[1680526939567,0.11000001,1803.0,1802.8,14.87246052]
[1680526939883,0.11000001,1803.0,1802.9,12.66693444]
[1680526940070,0.11000001,1803.0,1802.9,26.46174444]
[1680526940780,0.11000001,1803.0,1802.9,32.02564444]
[1680526947789,0.11000001,1803.0,1802.9,30.57372333]
[1680526949840,0.11000001,1803.0,1802.9,32.02640401]
[1680526950020,0.11000001,1803.0,1802.9,24.70915796]
[1680526952549,0.11845567,1803.0,1802.9,24.70915796]
[1680526953102,0.11845567,1803.0,1802.9,7.29375796]
[1680526954329,0.11845567,1803.0,1802.9,13.12375796]
[1680526954657,0.11845567,1803.0,1802.9,11.67107728]
[1680526954953,0.11845567,1803.0,1802.9,14.44364593]
[1680526955618,0.11000001,1803.0,1802.9,14.44364593]
[1680526960057,0.11000001,1803.0,1802.9,16.26437327]
[1680526960728,0.11000001,1803.0,1802.9,21.88337327]
[1680526963226,0.10703665,1803.0,1802.9,21.88337327]
[1680526966669,0.10703665,1803.0,1802.9,23.62888253]
[1680526969724,0.10703665,1803.0,1802.9,24.88337327]
[1680526971559,0.05703665,1803.0,1802.9,24.88337327]
[1680526979895,0.05703665,1803.0,1802.9,25.57337327]
[1680526980684,0.05703665,1803.0,1802.9,25.80337327]
[1680526982037,0.05703665,1803.0,1802.9,25.11337327]
[1680526982742,0.05703665,1803.0,1802.9,27.13495138]
[1680526987729,0.05703665,1803.0,1802.9,31.15595138]
[1680526995181,0.03023667,1803.2,1802.9,31.15795138]
[1680526995382,0.03023667,1803.2,1803.1,10.36013478]
[1680526995584,0.03023667,1803.2,1803.1,15.07623478]
[1680526995784,0.03023667,1803.2,1803.1,19.18623478]
[1680526996296,0.03023667,1803.2,1803.1,36.36043478]
[1680526996983,0.03023667,1803.2,1803.1,36.59043478]
[1680526997151,0.03023667,1803.2,1803.1,41.39438383]
[1680527000448,0.03023667,1803.2,1803.1,39.65201633]
[1680527001149,0.03023667,1803.2,1803.1,40.20697042]
[1680527001341,0.03023667,1803.2,1803.1,41.94924611]
[1680527007663,0.03023667,1803.2,1803.1,41.71924611]
[1680527010609,0.03023667,1803.2,1803.1,36.44844611]
[1680527010817,0.03023667,1803.2,1803.1,24.54504611]
[1680527011782,0.03023667,1803.2,1803.1,19.74109706]
[1680527012582,0.03023667,1803.2,1803.1,19.45147741]
[1680527013716,0.03023667,1803.2,1803.1,19.45148613]
[1680527013874,0.03023667,1803.2,1803.1,19.74109706]
[1680527014913,0.03023667,1803.2,1803.1,17.99882137]
[1680527015468,0.03023667,1803.2,1803.1,20.55659972]
[1680527018616,0.03023667,1803.2,1803.1,22.30021965]
[1680527018913,0.03023667,1803.2,1803.1,20.55659972]
[1680527019079,0.03023667,1803.2,1803.1,22.30025059]
[1680527019883,0.0270204,1803.2,1803.1,22.30025059]
[1680527021001,0.0270204,1803.2,1803.1,22.30035995]
[1680527021306,0.0270204,1803.2,1803.1,20.55659972]
[1680527027052,0.0270204,1803.2,1803.1,22.58936181]
[1680527029990,0.0270204,1803.2,1803.1,34.34526181]
[1680527031715,0.0270204,1803.2,1803.1,34.57526181]
[1680527040772,0.02440352,1803.2,1803.1,34.57526181]
[1680527046844,0.02440352,1803.2,1803.1,37.90226181]
[1680527048622,0.02443087,1803.9,1803.8,5.89670947]
[1680527049122,0.02443087,1803.9,1803.8,5.89470947]
[1680527050091,0.02443087,1803.9,1803.8,5.89670947]
[1680527050289,0.02443087,1803.9,1803.8,5.60513374]
[1680527050482,0.02443087,1803.9,1803.8,6.76773593]
[1680527051789,0.02443087,1803.9,1803.8,6.76573593]
[1680527052324,0.11063228,1803.9,1803.8,1.43988383]
[1680527052523,0.11063228,1803.9,1803.8,2.29557028]
[1680527052821,0.11063228,1803.9,1803.8,2.84995028]
[1680527052989,0.02443087,1803.9,1803.8,5.05722111]
[1680527053328,0.02443087,1803.9,1803.8,5.05922111]
[1680527053490,0.02443087,1803.9,1803.8,4.76865539]
[1680527053693,0.02443087,1803.9,1803.8,4.76665539]
[1680527057331,0.02443087,1803.9,1803.8,4.21227539]
[1680527057515,0.08807746,1803.9,1803.8,4.21227539]
[1680527058519,0.02443087,1803.9,1803.8,4.21227539]
[1680527060493,0.02903127,1803.9,1803.8,4.21227539]
[1680527062120,0.72303127,1803.9,1803.8,4.21227539]
[1680527068249,0.72083136,1803.9,1803.8,4.21227539]
[1680527068612,0.72083136,1803.9,1803.8,5.91226744]
[1680527068953,0.72083136,1803.9,1803.8,5.91426744]
[1680527069460,0.72083136,1803.9,1803.8,5.86426744]